bitfinex-derivatives/quotes_BNBF0:USTF0_20250529
["timestamp","ask_amount","ask_price","bid_price","bid_amount"]
[1748517941473,0.2916132,685.84,684.96,0.601]
[1748517941778,1.0216844,685.83,684.97,0.5694266]
[1748517941977,1.0216844,685.82,684.98,0.5694266]
[1748517942172,1.0216844,685.81,684.99,0.5694266]
[1748517942378,1.0216844,685.8,685.0,0.5694266]
[1748517942574,1.02143379,685.79,685.01,0.56945087]
[1748517942778,1.02143379,685.78,685.02,0.56941716]
[1748517943081,1.02143379,685.77,685.03,0.5694029]
[1748517943274,1.02140245,685.76,685.04,0.56940287]
[1748517943477,1.02140245,685.75,685.05,0.56940287]
[1748517943674,1.02140245,685.74,685.06,0.56940287]
[1748517943874,1.02140245,685.73,685.07,0.56940287]
[1748517944076,0.2916132,685.84,685.08,0.56940287]
[1748517944275,1.0214125,685.83,684.96,0.601]
[1748517944480,1.0214125,685.82,684.97,0.56937449]
[1748517944776,1.02145402,685.81,684.96,0.601]
[1748517944979,0.2916132,685.84,684.97,0.56939236]
[1748517944980,1.02145402,685.8,684.97,0.56939236]
[1748517945182,1.02145402,685.79,684.98,0.56939236]
[1748517945375,1.02145402,685.78,684.99,0.56939236]
[1748517945574,1.02145402,685.77,685.0,0.56939236]
[1748517945882,1.02145402,685.76,685.01,0.56939236]
[1748517946180,1.02145402,685.75,685.02,0.56939236]
[1748517946381,1.02145402,685.74,685.03,0.56939236]
[1748517946577,1.02148188,685.73,684.9,0.57004834]
[1748517946779,1.02148221,685.72,684.9,0.57004834]
[1748517946976,0.2916132,685.84,684.9,0.57004834]
[1748517947283,0.2916132,685.84,684.91,0.459]
[1748517948681,0.2916132,685.84,684.92,0.56926761]
[1748517948877,0.2916132,685.84,684.93,0.5692486]
[1748517949084,0.2916132,685.84,684.91,0.459]
[1748517949284,0.2916132,685.84,684.92,0.56924733]
[1748517949583,0.2916132,685.84,684.91,0.459]
[1748517949983,1.02138841,685.83,684.91,0.459]
[1748517950178,0.2916132,685.84,684.91,0.459]
[1748517950382,1.02138511,685.83,684.91,0.459]
[1748517950582,0.2916132,685.84,684.91,0.459]
[1748517950782,0.2916132,685.84,684.92,0.56923838]
[1748517950983,0.2916132,685.84,684.91,0.459]
[1748517951185,1.02137728,685.83,684.92,0.56924133]
[1748517951385,0.2916132,685.84,684.91,0.459]
[1748517951684,1.02137964,685.83,684.91,0.459]
[1748517951882,0.2916132,685.84,684.92,0.56924229]
[1748517952079,1.02203139,685.83,684.93,0.56924229]
[1748517952284,1.0220251,685.82,684.94,0.5692322]
[1748517952580,0.2916132,685.84,684.91,0.459]
[1748517952984,0.2916132,685.84,684.92,0.56923429]
[1748517953186,0.2916132,685.84,684.91,0.459]
[1748517953380,1.02203152,685.83,684.91,0.459]
[1748517953580,0.2916132,685.84,684.91,0.459]
[1748517954680,1.02206066,685.83,684.91,0.459]
[1748517954885,0.2916132,685.84,684.91,0.459]
[1748517955086,1.02206115,685.83,684.92,0.56927718]
[1748517955286,0.2916132,685.84,684.91,0.459]
[1748517955988,1.02209506,685.83,684.92,0.56906735]
[1748517956182,1.02209506,685.83,684.91,0.459]
[1748517956183,1.02209506,685.82,684.93,0.56906735]
[1748517956386,1.02209506,685.81,684.94,0.56906735]
[1748517956586,1.02209506,685.8,684.95,0.56906735]
[1748517956786,1.02209506,685.79,684.96,0.56906735]
[1748517956984,1.02209728,685.78,684.97,0.56880665]
[1748517957183,1.02209728,685.77,684.91,0.459]
[1748517957385,1.02209728,685.76,684.92,0.56880692]
[1748517957585,1.02209728,685.75,684.93,0.56880692]
[1748517957783,1.02209728,685.74,684.94,0.56880692]
[1748517957987,1.02209728,685.73,684.95,0.56880692]
[1748517958283,1.02209728,685.72,684.96,0.56880692]
[1748517958589,1.0221033,685.71,684.97,0.56864433]
[1748517958785,1.02210265,685.7,684.98,0.56863969]
[1748517958983,1.02210265,685.69,684.99,0.56863969]
[1748517959189,1.02210377,685.68,685.0,0.56864342]
[1748517959388,1.02210377,685.68,684.91,0.459]
[1748517959389,0.2916132,685.84,685.01,0.56864342]
[1748517959589,0.2916132,685.84,684.91,0.459]
[1748517959988,0.2916132,685.84,684.92,0.56857894]
[1748517960290,0.2916132,685.84,684.91,0.459]
[1748517960690,1.02207108,685.83,684.91,0.459]
[1748517960990,0.2916132,685.84,684.91,0.459]
[1748517961991,1.02210167,685.83,684.91,0.459]
[1748517962188,0.2916132,685.84,684.91,0.459]
[1748517962485,1.02210041,685.83,684.91,0.459]
[1748517962690,0.2916132,685.84,684.91,0.459]
[1748517962892,1.02210041,685.83,684.91,0.459]
[1748517963091,0.2916132,685.84,684.91,0.459]
[1748517964087,1.02225467,685.83,684.92,0.56864927]
[1748517964291,1.02227829,685.82,684.93,0.56864937]
[1748517964492,1.02227829,685.81,684.91,0.459]
[1748517964790,0.2916132,685.84,684.91,0.459]
[1748517965292,1.02231384,685.83,684.91,0.459]
[1748517965493,1.02231384,685.82,684.91,0.459]
[1748517965787,0.2916132,685.84,684.91,0.459]
[1748517966393,1.02231391,685.83,684.91,0.459]
[1748517966589,0.2916132,685.84,684.91,0.459]
[1748517966787,0.2916132,685.84,684.92,0.56870139]
[1748517967093,0.2916132,685.84,684.91,0.459]
[1748517967293,0.2916132,685.84,684.92,0.56870111]
[1748517967487,0.2916132,685.84,684.91,0.459]
[1748517967687,1.02273815,685.83,684.91,0.459]
[1748517967992,0.2916132,685.84,684.91,0.459]
[1748517969588,1.02285367,685.83,684.91,0.459]
[1748517969889,0.2916132,685.84,684.91,0.459]
[1748517970592,1.02286194,685.83,684.91,0.459]
[1748517970792,1.02286194,685.82,684.91,0.459]
[1748517970993,0.2916132,685.84,684.91,0.459]
[1748517971593,1.02286194,685.83,684.91,0.459]
[1748517971788,0.2916132,685.84,684.92,0.56893349]
[1748517971993,0.2916132,685.84,684.91,0.459]
[1748517972395,0.2916132,685.84,684.92,0.56893429]
[1748517972595,0.2916132,685.84,684.93,0.56893451]
[1748517972890,0.2916132,685.84,684.94,0.56893612]
[1748517973089,1.0228613,685.83,684.95,0.56893561]
[1748517973288,0.2916132,685.84,684.91,0.459]
[1748517973488,0.2916132,685.84,684.92,0.56891862]
[1748517973790,0.2916132,685.84,684.91,0.459]
[1748517974090,1.02281952,685.83,684.91,0.459]
[1748517974294,0.2916132,685.84,684.91,0.459]
[1748517974687,1.02277165,685.83,684.91,0.459]
[1748517974893,1.02277287,685.82,684.92,0.56887739]
[1748517975094,1.02277287,685.81,684.91,0.459]
[1748517975289,0.2916132,685.84,684.91,0.459]
[1748517976191,1.02272378,685.83,684.92,0.56856853]
[1748517976392,0.2916132,685.84,684.91,0.459]
[1748517976792,1.02272378,685.83,684.92,0.56856918]
[1748517976991,1.02272378,685.82,684.93,0.56856918]
[1748517977194,1.02272378,685.81,684.94,0.56856918]
[1748517977393,1.02272378,685.8,684.91,0.459]
[1748517977693,1.02272193,685.79,684.91,0.459]
[1748517977898,0.2916132,685.84,684.91,0.459]
[1748517978199,1.02276047,685.83,684.92,0.56859065]
[1748517978399,1.02257298,685.82,684.93,0.56859065]
[1748517978599,1.02257298,685.81,684.94,0.56859065]
[1748517978801,1.02257298,685.8,684.95,0.56859065]
[1748517979000,1.02258518,685.79,684.96,0.56854689]
[1748517979303,1.02258518,685.78,684.97,0.5685464]
[1748517979496,0.2916132,685.84,684.98,0.5685464]
[1748517979497,1.02258518,685.77,684.98,0.5685464]
[1748517979698,1.02258518,685.77,684.91,0.459]
[1748517979699,1.02258518,685.76,684.99,0.5685464]
[1748517979895,1.02271218,685.75,685.0,0.56856093]
[1748517980099,1.02271218,685.74,685.01,0.56856093]
[1748517980295,1.02271218,685.73,685.02,0.56856093]
[1748517980499,1.02271218,685.72,685.03,0.56856093]
[1748517980696,1.02271218,685.71,685.04,0.56856093]
[1748517980898,1.02276693,685.7,685.05,0.56856093]
[1748517981099,1.02276693,685.69,685.06,0.56858579]
[1748517981294,0.2916132,685.84,685.07,0.56858579]
[1748517981502,0.2916132,685.84,685.08,0.56863753]
[1748517981702,1.02346567,685.83,685.09,0.56863753]
[1748517981900,1.02346567,685.82,685.1,0.56863753]
[1748517982199,1.02346567,685.81,685.11,0.56863753]
[1748517982399,1.02351846,685.8,685.12,0.56866471]
[1748517982599,1.02351846,685.79,685.13,0.56866471]
[1748517982803,1.02351846,685.78,685.14,0.56866471]
[1748517982999,1.02351846,685.78,684.91,0.459]
[1748517983000,1.02356766,685.77,685.15,0.56868879]
[1748517983199,1.02356766,685.77,684.91,0.459]
[1748517983200,1.02356766,685.76,685.16,0.56868671]
[1748517983398,1.02356834,685.75,685.17,0.56869717]
[1748517983599,1.02361425,685.74,685.18,0.56874616]
[1748517983798,1.02361406,685.73,685.19,0.56878307]
[1748517984004,1.02361406,685.72,685.2,0.56878699]
[1748517984203,1.02361406,685.71,685.21,0.56879611]
[1748517984403,1.02361406,685.7,685.22,0.56879826]
[1748517984599,1.02361406,685.69,685.23,0.56879826]
[1748517984800,1.02365554,685.68,684.91,0.459]
[1748517984999,1.02365554,685.67,684.92,0.56881958]
[1748517985199,1.02365554,685.66,684.91,0.459]
[1748517985399,1.02365554,685.65,684.92,0.56888863]
[1748517985597,0.2916132,685.84,684.91,0.459]
[1748517985806,1.02382376,685.83,684.92,0.56891449]
[1748517986004,1.02382376,685.82,684.93,0.56891449]
[1748517986306,0.2916132,685.84,684.94,0.56891449]
[1748517986307,1.02382376,685.81,684.94,0.56891449]
[1748517986506,1.02386152,685.8,684.95,0.56891449]
[1748517986707,1.02386133,685.79,684.96,0.5689353]
[1748517986907,1.02386133,685.78,684.97,0.5689353]
[1748517987101,1.02386029,685.77,684.98,0.5689353]
[1748517987305,1.02386029,685.76,684.99,0.5689353]
[1748517987502,1.02386548,685.75,685.0,0.56895922]
[1748517987706,1.02386548,685.74,685.01,0.56895888]
[1748517988008,1.02390457,685.73,685.02,0.56895798]
[1748517988208,1.02390457,685.72,685.03,0.56895798]
[1748517988503,0.2916132,685.84,684.91,0.459]
[1748517988504,1.02396544,685.71,685.04,0.56899503]
[1748517988808,1.02396538,685.7,685.05,0.56899564]
[1748517989007,1.02396538,685.69,685.06,0.56899564]
[1748517989202,1.02396538,685.69,684.91,0.459]
[1748517989203,1.02396299,685.68,684.91,0.459]
[1748517989408,1.02400028,685.67,684.92,0.56899403]
[1748517989607,1.02400028,685.66,684.93,0.56899403]
[1748517989807,1.02400028,685.65,684.94,0.56903719]
[1748517990004,1.02400028,685.64,684.95,0.56903719]
[1748517990310,1.02400028,685.63,684.96,0.56903719]
[1748517990509,1.02400028,685.62,684.97,0.56903719]
[1748517990707,1.02412381,685.61,684.98,0.56883539]
[1748517990910,1.02412381,685.6,684.99,0.56883539]
[1748517991106,1.02412381,685.59,685.0,0.56883539]
[1748517991411,1.02409651,685.58,685.01,0.56879362]
[1748517991610,1.02409633,685.57,685.02,0.56879333]
[1748517991808,1.02411688,685.56,685.03,0.56880475]
[1748517992008,1.02411688,685.55,685.04,0.56880475]
[1748517992207,0.2916132,685.84,685.05,0.56880475]
[1748517992208,1.02411688,685.54,685.05,0.56880475]
[1748517992409,1.02411688,685.53,685.06,0.56880475]
[1748517992610,1.02411688,685.52,685.07,0.56880475]
[1748517992809,1.02420216,685.51,685.08,0.56880475]
[1748517993009,0.2916132,685.84,684.9,0.57004834]
[1748517993209,1.02420223,685.83,684.91,0.56890043]
[1748517993410,0.2916132,685.84,684.92,0.56897232]
[1748517993609,0.2916132,685.84,684.9,0.57004834]
[1748517994017,0.2916132,685.84,684.91,0.48]
[1748517994409,0.2916132,685.84,684.92,0.56911482]
[1748517994608,0.2916132,685.84,684.91,0.48]
[1748517994816,1.02428747,685.83,684.91,0.48]
[1748517995016,0.2916132,685.84,684.91,0.48]
[1748517995416,1.02428747,685.83,684.92,0.56915853]
[1748517995616,1.0242874,685.82,684.91,0.48]
[1748517995812,1.0242813,685.81,684.92,0.56915914]
[1748517996012,1.02429251,685.8,684.93,0.56915381]
[1748517996216,0.2916132,685.84,684.94,0.56916063]
[1748517996217,1.02429202,685.79,684.94,0.56916063]
[1748517996417,1.02429199,685.78,684.95,0.56916195]
[1748517996617,1.02429199,685.77,684.96,0.56916195]
[1748517996818,1.02429199,685.76,684.97,0.56916195]
[1748517997016,1.02429199,685.75,684.98,0.56916259]
[1748517997216,1.02429199,685.74,684.99,0.56916259]
[1748517997418,1.02429199,685.73,685.0,0.56917411]
[1748517997614,1.02429199,685.72,685.01,0.56917411]
[1748517997816,1.02429199,685.71,685.02,0.56917411]
[1748517998013,1.02425342,685.7,685.03,0.56909926]
[1748517998312,0.2916132,685.84,684.91,0.48]
[1748517998313,1.02425339,685.69,684.91,0.48]
[1748517998617,1.02425339,685.68,684.92,0.56910392]
[1748517998817,1.02425339,685.67,684.93,0.56910392]
[1748517999117,1.02425339,685.66,684.94,0.56910392]
[1748517999418,1.02425339,685.65,684.95,0.56910392]
[1748517999618,1.02410994,685.64,684.96,0.56900838]
[1748517999818,1.02410994,685.63,684.97,0.56900838]
[1748518000016,1.02410994,685.62,684.98,0.56900838]
[1748518000312,1.02410994,685.61,684.99,0.56901062]
[1748518000514,0.2916132,685.84,684.91,0.48]
[1748518000715,1.0240519,685.83,684.92,0.56897716]
[1748518000913,1.0240519,685.82,684.93,0.56897716]
[1748518001118,1.0240519,685.81,684.94,0.56897716]
[1748518001420,1.0240519,685.8,684.95,0.56897714]
[1748518001619,1.02400543,685.79,684.96,0.56894857]
[1748518001814,1.0241123,685.78,684.91,0.48]
[1748518002018,0.2916132,685.84,684.92,0.56902875]
[1748518002219,0.2916132,685.84,684.91,0.48]
[1748518002920,0.2916132,685.84,684.92,0.56901297]
[1748518003121,1.02410936,685.83,684.93,0.56901695]
[1748518003321,0.2916132,685.84,684.91,0.48]
[1748518003322,1.02410936,685.82,684.94,0.56901695]
[1748518003617,1.02410936,685.81,684.95,0.56901695]
[1748518003817,1.02416051,685.8,684.96,0.56905965]
[1748518004024,1.02416209,685.79,684.97,0.56905965]
[1748518004319,0.2916132,685.84,684.91,0.48]
[1748518004723,0.2916132,685.84,684.92,0.56910273]
[1748518004923,1.02418456,685.83,684.93,0.56910752]
[1748518005225,1.02418456,685.82,684.94,0.56910752]
[1748518005418,1.02418456,685.81,684.95,0.56910752]
[1748518005618,1.02418456,685.8,684.96,0.56910752]
[1748518005818,1.02418456,685.8,684.91,0.48]
[1748518005819,1.02418456,685.79,684.97,0.5687098]
[1748518006020,1.02471022,685.78,684.98,0.56872155]
[1748518006222,1.02471102,685.77,684.99,0.56873248]
[1748518006424,1.02471102,685.76,685.0,0.56873248]
[1748518006723,0.2916132,685.84,685.01,0.56873883]
[1748518006724,1.02470382,685.75,685.01,0.56873883]
[1748518006924,1.02473506,685.74,685.02,0.56876414]
[1748518007124,1.02473506,685.73,685.03,0.56876414]
[1748518007324,1.02473506,685.72,685.04,0.56876414]
[1748518007623,1.02473506,685.71,685.05,0.56876414]
[1748518007825,1.02473506,685.7,685.06,0.56876414]
[1748518008019,1.02473506,685.69,685.07,0.56876414]
[1748518008224,0.2916132,685.84,685.08,0.56884989]
[1748518008225,1.02473506,685.68,685.08,0.56884989]
[1748518008424,1.02473506,685.67,685.09,0.56884989]
[1748518008624,0.2916132,685.84,685.1,0.56884989]
[1748518008625,1.02473506,685.66,685.1,0.56884989]
[1748518008925,1.02473506,685.65,685.11,0.56884989]
[1748518009126,1.02473506,685.64,685.12,0.56884989]
[1748518009419,1.02477471,685.63,685.13,0.56847318]
[1748518009622,1.02477471,685.62,685.14,0.56847318]
[1748518009825,1.02475024,685.61,685.15,0.56847881]
[1748518010019,1.02475024,685.6,685.16,0.56847881]
[1748518010223,1.02474778,685.59,685.17,0.56847654]
[1748518010424,1.02474778,685.58,685.18,0.56847654]
[1748518010624,1.02474778,685.57,685.19,0.56847654]
[1748518010824,1.02474778,685.56,685.2,0.56847654]
[1748518011027,1.02474778,685.55,685.21,0.56847654]
[1748518011223,1.02474778,685.54,685.22,0.56847654]
[1748518011527,1.02478147,685.53,685.23,0.56856134]
[1748518011729,1.02477234,685.52,685.24,0.56854788]
[1748518012029,1.02478066,685.51,685.25,0.56854788]
[1748518012329,1.02478225,685.5,685.26,0.56856592]
[1748518012524,1.02478225,685.49,685.27,0.56856592]
[1748518012729,1.02478225,685.48,685.28,0.56856592]
[1748518013025,1.02478225,685.47,685.29,0.56856592]
[1748518013232,1.02478225,685.46,685.3,0.56856995]
[1748518013430,1.02474589,685.45,685.31,0.56856913]
[1748518013624,0.2916132,685.84,685.32,0.56856689]
[1748518013825,0.2916132,685.84,685.33,0.5685692]
[1748518014131,0.2916132,685.84,684.98,0.46344326]
[1748518014332,0.2916132,685.84,684.91,0.48]
[1748518014525,1.02473671,685.83,684.92,0.56856926]
[1748518014831,1.02473671,685.82,684.93,0.56856926]
[1748518015029,1.02473671,685.81,684.94,0.56856926]
[1748518015330,1.02473671,685.8,684.95,0.56856926]
[1748518015527,1.02473671,685.79,684.96,0.56856468]
[1748518015828,1.02473522,685.78,684.97,0.56856468]
[1748518016028,0.2916132,685.84,684.91,0.48]
[1748518016234,0.2916132,685.84,684.92,0.56857852]
[1748518016429,0.2916132,685.84,684.93,0.56857852]
[1748518016726,1.02475123,685.83,684.94,0.56858037]
[1748518016929,1.02475123,685.82,684.95,0.56858037]
[1748518017128,1.02475123,685.81,684.96,0.56858037]
[1748518017329,1.02474751,685.8,684.97,0.56857289]
[1748518017531,1.02475936,685.79,684.98,0.56857289]
[1748518017731,1.02476538,685.78,684.99,0.56858122]
[1748518017934,1.02476538,685.77,685.0,0.56858115]
[1748518018134,1.02476538,685.76,685.01,0.56858086]
[1748518018332,1.02476538,685.75,685.02,0.56858086]
[1748518018531,1.02476538,685.74,685.03,0.56858086]
[1748518018733,1.02476538,685.73,685.04,0.56858086]
[1748518018931,1.02476538,685.72,685.05,0.56858086]
[1748518019136,1.02476538,685.71,685.06,0.56858086]
[1748518019338,0.2916132,685.84,684.91,0.48]
[1748518019532,1.02480945,685.83,684.91,0.48]
[1748518019739,1.02481403,685.82,684.92,0.56861484]
[1748518019932,1.02481403,685.82,684.91,0.48]
[1748518019933,1.02481403,685.81,684.93,0.56861365]
[1748518020137,1.02481403,685.8,684.94,0.56861365]
[1748518020434,1.02481403,685.79,684.95,0.56861365]
[1748518020635,1.02481403,685.78,684.96,0.56861365]
[1748518020835,1.02481403,685.77,684.97,0.56861365]
[1748518021134,0.2916132,685.84,684.98,0.56861365]
[1748518021135,1.02481151,685.76,684.98,0.56861365]
[1748518021335,1.02481151,685.75,684.99,0.56862094]
[1748518021639,1.02481151,685.74,685.0,0.56862094]
[1748518021937,1.02482032,685.73,685.01,0.56862094]
[1748518022139,1.02482032,685.72,685.02,0.56862094]
[1748518022440,1.0248281,685.71,685.03,0.56864031]
[1748518022639,1.0248281,685.7,685.04,0.56874485]
[1748518022843,1.0248281,685.69,685.05,0.56874485]
[1748518023043,1.0248281,685.68,685.06,0.56874485]
[1748518023240,1.02483558,685.67,685.07,0.56874722]
[1748518023541,0.2916132,685.84,684.91,0.48]
[1748518023542,1.02483546,685.66,684.91,0.48]
[1748518023840,0.2916132,685.84,684.91,0.48]
[1748518024040,0.2916132,685.84,684.92,0.56879345]
[1748518024041,1.02483573,685.65,684.92,0.56879345]
[1748518024239,1.02483573,685.65,684.91,0.48]
[1748518024240,0.2916132,685.84,684.91,0.48]
[1748518025539,1.02483838,685.83,684.91,0.48]
[1748518025738,0.2916132,685.84,684.92,0.56876341]
[1748518025945,1.02483832,685.83,684.91,0.48]
[1748518026141,1.02483598,685.82,684.92,0.56875848]
[1748518026341,1.02483598,685.81,684.91,0.48]
[1748518026544,1.02483598,685.8,684.92,0.56872321]
[1748518026746,1.02483598,685.79,684.93,0.56872321]
[1748518026942,1.02483598,685.78,684.94,0.56872321]
[1748518027245,1.02484429,685.77,684.95,0.56872468]
[1748518027444,0.2916132,685.84,684.91,0.48]
[1748518027849,1.02485123,685.83,684.92,0.56873693]
[1748518028049,0.2916132,685.84,684.93,0.56873693]
[1748518028250,1.02485046,685.83,684.94,0.56873693]
[1748518028449,1.02485046,685.82,684.95,0.56873693]
[1748518028650,1.02485046,685.82,684.91,0.48]
[1748518028651,1.02485046,685.81,684.96,0.56873693]
[1748518028850,1.02485046,685.8,684.97,0.56872915]
[1748518029046,0.2916132,685.84,684.91,0.48]
[1748518029248,1.02484653,685.83,684.92,0.56872724]
[1748518029447,1.02484653,685.82,684.93,0.56872724]
[1748518029651,0.2916132,685.84,684.91,0.48]
[1748518029953,1.02485461,685.83,684.92,0.56872287]
[1748518030152,1.02485461,685.82,684.93,0.56871853]
[1748518030454,1.02485461,685.81,684.94,0.56871853]
[1748518030653,0.2916132,685.84,684.91,0.48]
[1748518031156,1.02486705,685.83,684.91,0.48]
[1748518031352,1.02486705,685.82,684.91,0.48]
[1748518031551,0.2916132,685.84,684.91,0.48]
[1748518031957,1.02486902,685.83,684.91,0.48]
[1748518032151,0.2916132,685.84,684.92,0.56871958]
[1748518032357,0.2916132,685.84,684.91,0.48]
[1748518032857,0.2916132,685.84,684.92,0.56871994]
[1748518033052,0.2916132,685.84,684.93,0.56871942]
[1748518033352,1.02487294,685.83,684.94,0.56871433]
[1748518033553,1.02487294,685.82,684.95,0.56871433]
[1748518033852,1.02487294,685.81,684.96,0.56834115]
[1748518034053,1.0248556,685.8,684.97,0.56834497]
[1748518034255,1.02485507,685.79,684.91,0.48]
[1748518034453,0.2916132,685.84,684.91,0.48]
[1748518034657,0.2916132,685.84,684.92,0.5683446]
[1748518034853,0.2916132,685.84,684.91,0.48]
[1748518035358,1.02485776,685.83,684.91,0.48]
[1748518035658,0.2916132,685.84,684.91,0.48]
[1748518036254,1.02485889,685.83,684.92,0.56835313]
[1748518036460,0.2916132,685.84,684.92,0.56835313]
[1748518036755,1.0248365,685.83,684.93,0.56835313]
[1748518036955,1.0248365,685.82,684.94,0.56835313]
[1748518037254,0.2916132,685.84,684.95,0.56835313]
[1748518037255,1.0248365,685.81,684.95,0.56835313]
[1748518037454,1.0248365,685.8,684.96,0.56833647]
[1748518037659,1.02483751,685.79,684.97,0.56833647]
[1748518037858,1.02483759,685.78,684.98,0.56833518]
[1748518038055,0.2916132,685.84,684.89,0.46344326]
[1748518038257,1.02480657,685.83,684.9,1.03176124]
[1748518038559,1.02480657,685.82,684.91,0.56831798]
[1748518038761,1.02480657,685.81,684.92,0.5683072]
[1748518038955,1.02482145,685.8,684.91,0.46344326]
[1748518039158,1.02482145,685.79,684.92,0.56829502]
[1748518039460,1.02483844,685.78,684.93,0.496]
[1748518039762,0.2916132,685.84,684.93,0.496]
[1748518040558,0.2916132,685.84,684.94,0.56827509]
[1748518040758,0.2916132,685.84,684.93,0.496]
[1748518040955,1.02482481,685.83,684.93,0.496]
[1748518041155,0.2916132,685.84,684.94,0.56828545]
[1748518041354,0.2916132,685.84,684.95,0.56828554]
[1748518041561,1.02483337,685.83,684.96,0.56828554]
[1748518041760,0.2916132,685.84,684.93,0.496]
[1748518042357,1.02478215,685.83,684.93,0.496]
[1748518042555,0.2916132,685.84,684.93,0.496]
[1748518042754,0.2916132,685.84,684.94,0.56823653]
[1748518042959,0.2916132,685.84,684.93,0.496]
[1748518043358,1.02476842,685.83,684.93,0.496]
[1748518043559,1.02474627,685.82,684.93,0.496]
[1748518043858,0.2916132,685.84,684.93,0.496]
[1748518044661,0.2916132,685.84,684.94,0.56821088]
[1748518044962,0.2916132,685.84,684.93,0.496]
[1748518045158,1.02471882,685.83,684.93,0.496]
[1748518045356,0.2916132,685.84,684.94,0.56819728]
[1748518045561,1.02469925,685.83,684.93,0.496]
[1748518045755,0.2916132,685.84,684.93,0.496]
[1748518045957,0.2916132,685.84,684.94,0.56817354]
[1748518046157,0.2916132,685.84,684.93,0.496]
[1748518046961,1.0246782,685.83,684.94,0.56815991]
[1748518047162,1.0246782,685.82,684.93,0.496]
[1748518047357,0.2916132,685.84,684.93,0.496]
[1748518047857,0.2916132,685.84,684.94,0.56815115]
[1748518048157,0.2916132,685.84,684.93,0.496]
[1748518048158,1.02466011,685.83,684.93,0.496]
[1748518048363,1.02463835,685.82,684.94,0.56813675]
[1748518048563,1.02463849,685.81,684.94,0.56813675]
[1748518048859,0.2916132,685.84,684.93,0.496]
[1748518049163,1.02463828,685.83,684.94,0.56813]
[1748518049363,0.2916132,685.84,684.93,0.496]
[1748518049759,0.2916132,685.84,684.93,0.95944326]
[1748518049956,1.02461608,685.83,684.93,0.95944326]
[1748518050161,0.2916132,685.84,684.93,0.95944326]
[1748518050359,0.2916132,685.84,684.94,0.56810917]
[1748518050664,1.02459358,685.83,684.95,0.56811114]
[1748518050861,0.2916132,685.84,684.93,0.95944326]
[1748518051163,0.2916132,685.84,684.94,0.46344326]
[1748518051362,0.2916132,685.84,684.93,0.496]
[1748518051560,1.02459325,685.83,684.93,0.496]
[1748518051763,0.2916132,685.84,684.94,0.56807278]
[1748518052060,0.2916132,685.84,684.93,0.496]
[1748518052867,1.02454566,685.83,684.93,0.496]
[1748518053067,1.02454833,685.82,684.94,0.56804548]
[1748518053266,0.2916132,685.84,684.93,0.496]
[1748518053467,1.02454853,685.83,684.94,0.56804753]
[1748518053666,0.2916132,685.84,684.95,0.56804753]
[1748518053667,1.02454853,685.82,684.95,0.56804753]
[1748518053968,1.02454768,685.81,684.96,0.56804324]
[1748518054170,0.2916132,685.84,684.97,0.56800003]
[1748518054171,1.02452058,685.8,684.97,0.56800003]
[1748518054467,1.02453959,685.79,684.98,0.56800515]
[1748518054673,0.2916132,685.84,684.93,0.496]
[1748518054968,1.02454196,685.83,684.94,0.5680075]
[1748518055170,1.02454196,685.83,684.93,0.496]
[1748518055171,1.02454196,685.82,684.95,0.5680075]
[1748518055373,1.02454196,685.81,684.96,0.5680075]
[1748518055572,1.02454196,685.81,684.93,0.496]
[1748518055573,1.02454196,685.8,684.97,0.5680075]
[1748518055773,1.02454196,685.79,684.98,0.5680075]
[1748518056074,1.02453385,685.78,684.93,0.496]
[1748518056276,1.02453385,685.77,684.94,0.56801462]
[1748518056573,1.02456212,685.76,684.95,0.56803068]
[1748518056774,1.02456212,685.75,684.96,0.56803068]
[1748518056974,1.02456212,685.74,684.97,0.56803068]
[1748518057175,1.02456212,685.74,684.93,0.496]
[1748518057176,1.02456212,685.73,684.98,0.56803068]
[1748518057375,1.02456212,685.72,684.93,0.496]
[1748518057576,0.2916132,685.84,684.93,0.496]
[1748518057769,1.02459823,685.83,684.94,0.56806205]
[1748518057970,1.02459823,685.82,684.95,0.56806205]
[1748518058172,1.02460087,685.81,684.96,0.56804752]
[1748518058377,1.02460087,685.8,684.97,0.56804752]
[1748518058677,1.02469064,685.79,684.98,0.56800177]
[1748518058877,1.02469064,685.78,684.99,0.56800177]
[1748518059078,1.02469064,685.77,685.0,0.56800177]
[1748518059273,0.2916132,685.84,684.62,0.46344326]
[1748518059274,1.02469064,685.76,685.01,0.56800177]
[1748518059478,1.02469064,685.76,684.42,0.2538395]
[1748518059479,1.02469064,685.75,685.02,0.56800177]
[1748518059675,0.2916132,685.84,684.42,0.2538395]
[1748518059676,1.02478466,685.74,685.03,0.56805053]
[1748518059878,0.2916132,685.84,685.04,0.56805238]
[1748518059879,1.02478394,685.73,685.04,0.56805238]